[Event "ROU-chT Men Superliga 2018"]
[Site "Sovata"]
[Date "2018.11.24"]
[Round "1.10"]
[White "Nastase, Robert-Paul"]
[Black "Vajda, Levente"]
[Result "0-1"]
[ECO "C45"]
[WhiteElo "2296"]
[BlackElo "2547"]
[Annotator "ChessBase"]
[PlyCount "88"]
[EventDate "2018.11.24"]
[EventType "team-tourn"]
[EventCountry "ROU"]
[SourceTitle "playchess.com"]
[Source "ChessBase"]
[SourceQuality "1"]
[TimeControl "40/5400+30:1800+30"]

1. e4 {[%emt 0:00:00]} e5 {[%emt 0:00:00]} 2. Nf3 {[%emt 0:00:00]} Nc6 {[%emt 0:00:00]} 3. d4 {[%emt 0:00:00]} exd4 {[%emt 0:00:00]} 4. Nxd4 {[%emt 0:00:00]} Nf6 {[%emt 0:00:16]} 5. Nxc6 {[%emt 0:00:00]} bxc6 {[%emt 0:00:04]} 6. e5 {[%emt 0:00:00]} Qe7 {[%emt 0:00:07]} 7. Qe2 {[%emt 0:00:00]} Nd5 {[%emt 0:00:08]} 8. h4 {[%emt 0:00:00]} a5 {[%emt 0:04:14]} 9. c4 {[%emt 0:00:00]} Nb6 {[%emt 0:00:40]} 10. h5 {[%emt 0:00:00]} a4 {[%emt 0:05:33]} 11. Nd2 {[%emt 0:02:03]} Ra5 {[%emt 0:03:43]} 12. Nf3 {[%emt 0:06:40]} Qb4+ {[%emt 0:05:13]} 13. Kd1 {[%emt 0:09:51]} Ba6 {[%emt 0:02:26]} 14. Rh4 {[%emt 0:01:53]} Be7 {[%emt 0:08:59]} 15. Re4 {[%emt 0:00:30]} d5 {[%emt 0:11:02]} 16. exd6 {[%emt 0:00:15]} Qxd6+ {[%emt 0:00:08]} 17. Qd2 {[%emt 0:19:53]} Rxh5 {[%emt 0:03:11]} 18. Kc2 {[%emt 0:10:33]} O-O {[%emt 0:08:49]} 19. g4 {[%emt 0:02:06]} Rd5 {[%emt 0:09:25]} 20. Qe1 {[%emt 0:00:34]} Rc5 {[%emt 0:00:56]} 21. Be3 {[%emt 0:09:08]} Rxc4+ {[%emt 0:00:22]} 22. Bxc4 {[%emt 0:00:58]} Nxc4 {[%emt 0:04:20]} 23. Rd1 {[%emt 0:07:07]} Qg6 {[%emt 0:02:50]} 24. Bf4 {[%emt 0:00:07]} a3 {[%emt 0:07:28]} 25. Ne5 {[%emt 0:03:42]} Nxe5 {[%emt 0:01:52]} 26. Bxe5 {[%emt 0:00:05]} Bh4 {[%emt 0:03:56]} 27. Bg3 {[%emt 0:06:57]} Bf6 {[%emt 0:08:04]} 28. bxa3 {[%emt 0:00:41]} Bc8 {[%emt 0:01:25]} 29. f3 {[%emt 0:02:15]} h5 {[%emt 0:00:08]} 30. Qe2 {[%emt 0:02:02]} hxg4 {[%emt 0:03:18]} 31. fxg4 {[%emt 0:00:05]} c5 {[%emt 0:02:12]} 32. Kc1 {[%emt 0:02:44]} Ba6 {[%emt 0:00:50]} 33. Qc2 {[%emt 0:00:41]} Rb8 {[%emt 0:01:25]} 34. Bxc7 {[%emt 0:00:59]} Bg5+ {[%emt 0:00:52]} 35. Bf4 {[%emt 0:00:20]} Qf6 {[%emt 0:01:41]} 36. Bxg5 {[%emt 0:00:13]} Qxg5+ {[%emt 0:00:07]} 37. Rd2 {[%emt 0:03:18]} Qf6 {[%emt 0:00:13]} 38. Rf2 {[%emt 0:01:00]} Qa1+ {[%emt 0:01:30]} 39. Kd2 {[%emt 0:00:06]} Rd8+ {[%emt 0:00:34]} 40. Ke3 {[%emt 0:00:00]} Bb7 {[%emt 0:00:00]} 41. Re2 {[%emt 0:09:01]} Qf1 {[%emt 0:09:43]} 42. Qc4 {[%emt 0:06:32]} Qg1+ {[%emt 0:00:25]} 43. Rf2 {[%emt 0:00:54]} Qe1+ {[%emt 0:00:36]} 44. Qe2 {[%emt 0:00:48]} Qc1+ {[%emt 0:00:28] Kd4} 0-1

[Event "ROU-chT Men Superliga 2018"]
[Site "Sovata"]
[Date "2018.11.24"]
[Round "1.13"]
[White "Parligras, Mircea-Emilian"]
[Black "Morozov, Nichita"]
[Result "1-0"]
[ECO "E12"]
[WhiteElo "2645"]
[BlackElo "2439"]
[Annotator "RC"]
[PlyCount "95"]
[EventDate "2018.11.24"]
[EventType "team-tourn"]
[EventCountry "ROU"]
[SourceTitle "playchess.com"]
[Source "ChessBase"]
[SourceQuality "1"]
[TimeControl "40/5400+30:1800+30"]

1. d4 {[%emt 0:00:00]} Nf6 {[%emt 0:00:00]} 2. c4 {[%emt 0:00:00]} e6 {[%emt 0:00:00]} 3. Nf3 {[%emt 0:00:00]} b6 {[%emt 0:00:00]} 4. a3 {[%emt 0:00:10]} Bb7 {[%emt 0:00:00]} 5. Bf4 {[%emt 0:00:15]} Ne4 {[%emt 0:00:00]} 6. e3 {[%emt 0:00:22]} g5 {[%emt 0:01:14]} 7. Bg3 {[%emt 0:00:49]} Nxg3 {[%emt 0:04:04]} 8. hxg3 {[%emt 0:00:25]} Bg7 {[%emt 0:02:28]} 9. Nc3 {[%emt 0:06:43]} g4 {[%emt 0:06:16]} 10. Ng1 {[%emt 0:03:47]} h5 {[%emt 0:04:22]} 11. Nge2 {[%emt 0:00:19]} h4 {[%emt 0:09:38]} 12. Nf4 {[%emt 0:11:08]} f5 {[%emt 0:05:50]} 13. gxh4 {[%emt 0:12:44]} Rxh4 {[%emt 0:00:17]} 14. Rxh4 {[%emt 0:00:05]} Qxh4 {[%emt 0:00:06]} 15. Nb5 {[%emt 0:03:17]} Na6 {[%emt 0:01:07]} 16. g3 {[%emt 0:01:09]} Qe7 {[%emt 0:08:41]} 17. Qa4 {[%emt 0:09:27]} c6 {[%emt 0:03:59]} 18. Nc3 {[%emt 0:00:14]} c5 {[%emt 0:07:08]} 19. O-O-O {[%emt 0:01:42]} Nc7 {[%emt 0:03:31]} 20. Bg2 {[%emt 0:07:15]} Bxg2 {[%emt 0:00:20]} 21. Nxg2 {[%emt 0:00:04]} cxd4 {[%emt 0:04:06]} 22. exd4 {[%emt 0:00:11]} Qd6 {[%emt 0:00:07]} 23. Nf4 {[%emt 0:06:16]} Bh6 {[%emt 0:13:01]} 24. Nce2 {[%emt 0:00:24]} b5 {[%emt 0:02:23]} 25. cxb5 {[%emt 0:00:16]} Nd5 {[%emt 0:01:30]} 26. Kb1 {[%emt 0:03:46]} Bxf4 {[%emt 0:00:13]} 27. Nxf4 {[%emt 0:01:51]} Nxf4 {[%emt 0:00:13]} 28. gxf4 {[%emt 0:00:05]} Qxf4 {[%emt 0:00:10]} 29. Qc2 {[%emt 0:00:40]} Qe4 {[%emt 0:08:48]} 30. Qxe4 {[%emt 0:00:34]} fxe4 {[%emt 0:00:03]} 31. Rg1 {[%emt 0:00:15]} O-O-O {[%emt 0:02:35]} 32. Rxg4 {[%emt 0:00:20]} Rf8 {[%emt 0:00:04]} 33. Rxe4 {[%emt 0:00:22]} Rxf2 {[%emt 0:00:03]} 34. a4 {[%emt 0:02:59]} Kc7 {[%emt 0:00:23]} 35. Ka2 {[%emt 0:01:15]} Kb6 {[%emt 0:02:00]} 36. Ka3 {[%emt 0:02:10]} Rd2 {[%emt 0:00:23]} 37. Rh4 {[%emt 0:02:12]} Rd1 {[%emt 0:02:27]} 38. Kb4 {[%emt 0:00:53]} Rd2 {[%emt 0:01:20]} 39. a5+ {[%emt 0:03:56]} Kc7 {[%emt 0:00:53]} 40. Kc3 {[%emt 0:00:00]} Rd1 {[%emt 0:00:00]} 41. Rh8 {[%emt 0:03:21]} Rc1+ {[%emt 0:03:01]} 42. Kb4 {[%emt 0:01:57]} Rd1 {[%emt 0:01:01]} 43. a6 {[%emt 0:01:10]} Rxd4+ {[%emt 0:00:04]} 44. Ka5 {[%emt 0:00:07]} e5 {[%emt 0:06:16]} 45. Ra8 {[%emt 0:00:07]} e4 {[%emt 0:00:05]} 46. Rxa7+ {[%emt 0:00:04]} Kb8 {[%emt 0:00:04]} 47. Rb7+ {[%emt 0:00:39]} Kc8 {[%emt 0:00:48]} 48. b6 {[%emt 0:03:01]} 1-0

[Event "ROU-chT Men Superliga 2018"]
[Site "Sovata"]
[Date "2018.11.24"]
[Round "1.14"]
[White "Ionescu, Constantin"]
[Black "Deac, Bogdan-Daniel"]
[Result "0-1"]
[ECO "E52"]
[WhiteElo "2432"]
[BlackElo "2598"]
[Annotator "RC"]
[PlyCount "84"]
[EventDate "2018.11.24"]
[EventType "team-tourn"]
[EventCountry "ROU"]
[SourceTitle "playchess.com"]
[Source "ChessBase"]
[SourceQuality "1"]
[TimeControl "40/5400+30:1800+30"]

1. d4 {[%emt 0:00:00]} Nf6 {[%emt 0:00:00]} 2. c4 {[%emt 0:00:00]} e6 {[%emt 0:00:00]} 3. Nc3 {[%emt 0:00:08]} Bb4 {[%emt 0:00:00]} 4. e3 {[%emt 0:01:44]} O-O {[%emt 0:00:00]} 5. Bd3 {[%emt 0:00:08]} d5 {[%emt 0:00:00]} 6. Nf3 {[%emt 0:00:28]} b6 {[%emt 0:00:07]} 7. O-O {[%emt 0:00:23]} Ba6 {[%emt 0:00:04]} 8. cxd5 {[%emt 0:03:52]} exd5 {[%emt 0:00:06]} 9. Bxa6 {[%emt 0:01:39]} Nxa6 {[%emt 0:00:03]} 10. Qd3 {[%emt 0:00:12]} Qc8 {[%emt 0:01:17]} 11. a3 {[%emt 0:04:44]} Bd6 {[%emt 0:04:14]} 12. b4 {[%emt 0:00:49]} c6 {[%emt 0:00:30]} 13. b5 {[%emt 0:09:32]} cxb5 {[%emt 0:01:50]} 14. Nxb5 {[%emt 0:00:56]} Be7 {[%emt 0:00:09]} 15. Bb2 {[%emt 0:03:22]} Qb7 {[%emt 0:01:58]} 16. Rfc1 {[%emt 0:01:43]} Rac8 {[%emt 0:00:50]} 17. Qf5 {[%emt 0:11:18]} g6 {[%emt 0:03:02]} 18. Qd3 {[%emt 0:04:51]} Nb8 {[%emt 0:00:50]} 19. a4 {[%emt 0:00:22]} a6 {[%emt 0:03:46]} 20. Nc3 {[%emt 0:02:34]} Nc6 {[%emt 0:00:08]} 21. Ba3 {[%emt 0:00:34]} Bxa3 {[%emt 0:07:15]} 22. Rxa3 {[%emt 0:00:08]} Na5 {[%emt 0:00:05]} 23. Nd2 {[%emt 0:06:47]} Rc6 {[%emt 0:04:57]} 24. Na2 {[%emt 0:04:34]} Rxc1+ {[%emt 0:04:03]} 25. Nxc1 {[%emt 0:00:08]} Rc8 {[%emt 0:00:04]} 26. Rc3 {[%emt 0:00:33]} Rxc3 {[%emt 0:00:11]} 27. Qxc3 {[%emt 0:00:09]} Qd7 {[%emt 0:00:03]} 28. Qc2 {[%emt 0:03:13]} b5 {[%emt 0:04:58]} 29. axb5 {[%emt 0:02:52]} Qxb5 {[%emt 0:00:14]} 30. g3 {[%emt 0:02:08]} Kg7 {[%emt 0:01:04]} 31. Nd3 {[%emt 0:02:53]} Nc6 {[%emt 0:00:31]} 32. Qb3 {[%emt 0:00:13]} Qa5 {[%emt 0:00:19]} 33. Qb2 {[%emt 0:01:00]} Qa4 {[%emt 0:02:05]} 34. Kg2 {[%emt 0:01:28]} a5 {[%emt 0:06:27]} 35. Nb3 {[%emt 0:05:45]} Qb5 {[%emt 0:11:52]} 36. Nbc5 {[%emt 0:00:10]} Nb4 {[%emt 0:00:06]} 37. Nxb4 {[%emt 0:00:15]} axb4 {[%emt 0:03:30]} 38. Qa2 {[%emt 0:00:22]} h5 {[%emt 0:00:09]} 39. Qa7 {[%emt 0:09:04]} b3 {[%emt 0:07:57]} 40. Qe7 {[%emt 0:00:00]} Qb6 {[%emt 0:00:00]} 41. Na4 {[%emt 0:05:08]} Qc6 {[%emt 0:01:17]} 42. Qa7 {[%emt 0:05:56]} Qc2 {[%emt 0:00:22]} 0-1

[Event "ROU-chT Men Superliga 2018"]
[Site "Sovata"]
[Date "2018.11.24"]
[Round "1.18"]
[White "Scripcaru, George-Daniel"]
[Black "Nanu, Costica-Ciprian"]
[Result "0-1"]
[ECO "A05"]
[WhiteElo "2176"]
[BlackElo "2505"]
[Annotator "ChessBase"]
[PlyCount "100"]
[EventDate "2018.11.24"]
[EventType "team-tourn"]
[EventCountry "ROU"]
[SourceTitle "playchess.com"]
[Source "ChessBase"]
[SourceQuality "1"]
[TimeControl "40/5400+30:1800+30"]

1. Nf3 {[%emt 0:00:00]} Nf6 {[%emt 0:00:00]} 2. g3 {[%emt 0:00:00]} d5 {[%emt 0:00:00]} 3. Bg2 {[%emt 0:00:12]} c6 {[%emt 0:00:00]} 4. c4 {[%emt 0:00:05]} g6 {[%emt 0:00:21]} 5. b3 {[%emt 0:07:13]} Bg7 {[%emt 0:00:10]} 6. Bb2 {[%emt 0:00:02]} O-O {[%emt 0:00:06]} 7. O-O {[%emt 0:00:07]} a5 {[%emt 0:00:23]} 8. d3 {[%emt 0:03:47]} a4 {[%emt 0:02:00]} 9. cxd5 {[%emt 0:15:45]} Nxd5 {[%emt 0:01:27]} 10. Bxg7 {[%emt 0:00:13]} Kxg7 {[%emt 0:00:04]} 11. Na3 {[%emt 0:03:20]} Na6 {[%emt 0:02:56]} 12. Qc1 {[%emt 0:03:42]} axb3 {[%emt 0:19:55]} 13. axb3 {[%emt 0:00:16]} f6 {[%emt 0:03:19]} 14. Nc4 {[%emt 0:02:50]} Be6 {[%emt 0:02:25]} 15. Qb2 {[%emt 0:06:09]} Ndb4 {[%emt 0:04:50]} 16. Ng5 {[%emt 0:05:47]} Bg8 {[%emt 0:01:17]} 17. Ne4 {[%emt 0:00:13]} Nd5 {[%emt 0:10:49]} 18. h4 {[%emt 0:04:00]} Ndc7 {[%emt 0:04:43]} 19. Rfd1 {[%emt 0:13:22]} Nb5 {[%emt 0:03:53]} 20. d4 {[%emt 0:03:58]} Nb4 {[%emt 0:03:34]} 21. Rxa8 {[%emt 0:03:14]} Qxa8 {[%emt 0:00:08]} 22. Ra1 {[%emt 0:05:04]} Qd8 {[%emt 0:01:33]} 23. e3 {[%emt 0:02:12]} Nd5 {[%emt 0:00:21]} 24. Nc5 {[%emt 0:00:31]} b6 {[%emt 0:06:13]} 25. Nd3 {[%emt 0:03:43]} Qb8 {[%emt 0:01:02]} 26. Rc1 {[%emt 0:02:13]} Rd8 {[%emt 0:01:18]} 27. Na3 {[%emt 0:03:18]} Na7 {[%emt 0:02:37]} 28. e4 {[%emt 0:00:34]} Nc7 {[%emt 0:00:14]} 29. Nb4 {[%emt 0:03:10]} c5 {[%emt 0:00:42]} 30. Nbc2 {[%emt 0:01:05]} cxd4 {[%emt 0:07:16]} 31. Nxd4 {[%emt 0:00:13]} Ne6 {[%emt 0:00:12]} 32. Nxe6+ {[%emt 0:02:19]} Bxe6 {[%emt 0:01:33]} 33. Nc4 {[%emt 0:00:06]} Nc6 {[%emt 0:01:50]} 34. Qa3 {[%emt 0:02:53]} Rd7 {[%emt 0:03:26]} 35. Kh2 {[%emt 0:01:06]} Bxc4 {[%emt 0:00:34]} 36. Rxc4 {[%emt 0:01:52]} Ne5 {[%emt 0:00:04]} 37. Rc1 {[%emt 0:01:20]} Ra7 {[%emt 0:00:14]} 38. Rc8 {[%emt 0:01:36]} Ng4+ {[%emt 0:01:02]} 39. Kg1 {[%emt 0:00:26]} Rxa3 {[%emt 0:02:38]} 40. Rxb8 {[%emt 0:00:00]} Rxb3 {[%emt 0:00:00]} 41. Bh3 {[%emt 0:01:01]} h5 {[%emt 0:00:24]} 42. Bxg4 {[%emt 0:01:34]} hxg4 {[%emt 0:00:15]} 43. Kf1 {[%emt 0:00:18]} Rb2 {[%emt 0:00:06]} 44. Rc8 {[%emt 0:01:05]} Kf7 {[%emt 0:00:29]} 45. e5 {[%emt 0:00:36]} f5 {[%emt 0:03:47]} 46. Rc6 {[%emt 0:00:06]} b5 {[%emt 0:00:05]} 47. Rb6 {[%emt 0:00:05]} b4 {[%emt 0:00:04]} 48. Kg2 {[%emt 0:01:28]} Rb1 {[%emt 0:00:22]} 49. Kh2 {[%emt 0:00:13]} b3 {[%emt 0:00:04]} 50. Kg2 {[%emt 0:00:06]} e6 {[%emt 0:00:59]} 0-1

[Event "ROU-chT Men Superliga 2018"]
[Site "Sovata"]
[Date "2018.11.24"]
[Round "1.22"]
[White "Grigore, George-Gabriel"]
[Black "Luncasu, Raul-Ionut"]
[Result "1-0"]
[ECO "D16"]
[WhiteElo "2488"]
[BlackElo "2187"]
[Annotator "ChessBase"]
[PlyCount "78"]
[EventDate "2018.11.24"]
[EventType "team-tourn"]
[EventCountry "ROU"]
[SourceTitle "playchess.com"]
[Source "ChessBase"]
[SourceQuality "1"]
[TimeControl "40/5400+30:1800+30"]

1. d4 {[%emt 0:00:00]} d5 {[%emt 0:00:00]} 2. c4 {[%emt 0:00:00]} c6 {[%emt 0:00:18]} 3. Nf3 {[%emt 0:01:03]} Nf6 {[%emt 0:00:26]} 4. Nc3 {[%emt 0:00:09]} dxc4 {[%emt 0:04:45]} 5. a4 {[%emt 0:00:21]} Na6 {[%emt 0:01:51]} 6. e4 {[%emt 0:01:28]} Bg4 {[%emt 0:02:21]} 7. Bxc4 {[%emt 0:00:19]} Bxf3 {[%emt 0:01:11]} 8. gxf3 {[%emt 0:00:42]} e6 {[%emt 0:01:03]} 9. O-O {[%emt 0:02:07]} Be7 {[%emt 0:13:12]} 10. Kh1 {[%emt 0:01:49]} O-O {[%emt 0:20:27]} 11. Rg1 {[%emt 0:01:28]} Kh8 {[%emt 0:03:11]} 12. f4 {[%emt 0:12:25]} g6 {[%emt 0:01:55]} 13. Be3 {[%emt 0:04:58]} Nc7 {[%emt 0:04:45]} 14. Qf3 {[%emt 0:06:27]} Nce8 {[%emt 0:02:35]} 15. Rgd1 {[%emt 0:07:22]} Ng7 {[%emt 0:07:12]} 16. d5 {[%emt 0:10:20]} cxd5 {[%emt 0:01:25]} 17. exd5 {[%emt 0:00:35]} Qc7 {[%emt 0:04:49]} 18. b3 {[%emt 0:02:20]} exd5 {[%emt 0:04:07]} 19. Nxd5 {[%emt 0:00:35]} Nxd5 {[%emt 0:00:15]} 20. Bxd5 {[%emt 0:00:11]} Nf5 {[%emt 0:02:43]} 21. Rac1 {[%emt 0:04:05]} Qa5 {[%emt 0:01:00]} 22. Bxb7 {[%emt 0:02:28]} Rad8 {[%emt 0:01:17]} 23. Bd5 {[%emt 0:17:11]} Nxe3 {[%emt 0:02:48]} 24. fxe3 {[%emt 0:00:18]} Kg7 {[%emt 0:04:40]} 25. e4 {[%emt 0:01:10]} Rc8 {[%emt 0:00:52]} 26. Bc4 {[%emt 0:07:56]} Rcd8 {[%emt 0:01:25]} 27. Rd5 {[%emt 0:01:56]} Rxd5 {[%emt 0:01:06]} 28. Bxd5 {[%emt 0:00:18]} Qd8 {[%emt 0:04:54]} 29. Qc3+ {[%emt 0:03:51]} Kg8 {[%emt 0:01:24]} 30. Qc7 {[%emt 0:02:58]} Bd6 {[%emt 0:02:59]} 31. Bxf7+ {[%emt 0:01:16]} Kg7 {[%emt 0:01:06]} 32. Qxd8 {[%emt 0:02:36]} Rxd8 {[%emt 0:00:01]} 33. e5 {[%emt 0:02:41]} Bxe5 {[%emt 0:02:14]} 34. fxe5 {[%emt 0:00:12]} Kxf7 {[%emt 0:00:00]} 35. Rc7+ {[%emt 0:00:21]} Ke6 {[%emt 0:00:39]} 36. Rxa7 {[%emt 0:01:01]} Rb8 {[%emt 0:00:21]} 37. a5 {[%emt 0:00:53]} Rxb3 {[%emt 0:00:20]} 38. a6 {[%emt 0:00:13]} Ra3 {[%emt 0:00:44]} 39. Ra8 {[%emt 0:00:20]} Kd5 1-0

[Event "ROU-chT Men Superliga 2018"]
[Site "Sovata"]
[Date "2018.11.24"]
[Round "1.23"]
[White "Popescu, Daniel-Vasilica"]
[Black "Szabo, Attila"]
[Result "1/2-1/2"]
[ECO "C50"]
[WhiteElo "2131"]
[BlackElo "2263"]
[Annotator "NA"]
[PlyCount "84"]
[EventDate "2018.11.24"]
[EventType "team-tourn"]
[EventCountry "ROU"]
[SourceTitle "playchess.com"]
[Source "ChessBase"]
[SourceQuality "1"]
[TimeControl "40/5400+30:1800+30"]

1. e4 {[%emt 0:00:00]} e5 {[%emt 0:00:15]} 2. Nf3 {[%emt 0:00:07]} Nc6 {[%emt 0:00:46]} 3. Bc4 {[%emt 0:00:05]} Be7 {[%emt 0:00:29]} 4. c3 {[%emt 0:03:19]} Nf6 {[%emt 0:00:28]} 5. d3 {[%emt 0:01:09]} O-O {[%emt 0:00:16]} 6. O-O {[%emt 0:00:24]} d6 {[%emt 0:06:10]} 7. Re1 {[%emt 0:04:34]} a6 {[%emt 0:00:40]} 8. a4 {[%emt 0:00:35]} h6 {[%emt 0:03:29]} 9. Nbd2 {[%emt 0:09:40]} Rb8 {[%emt 0:04:40]} 10. b4 {[%emt 0:05:15]} Nh7 {[%emt 0:08:17]} 11. Nf1 {[%emt 0:06:43]} Ng5 {[%emt 0:00:21]} 12. Ne3 {[%emt 0:02:27]} Nxf3+ {[%emt 0:05:18]} 13. Qxf3 {[%emt 0:03:30]} Bg5 {[%emt 0:00:27]} 14. g4 {[%emt 0:21:35]} Ne7 {[%emt 0:06:45]} 15. Nf5 {[%emt 0:10:30]} Ng6 {[%emt 0:00:37]} 16. Qg3 {[%emt 0:10:01]} Be6 {[%emt 0:08:02]} 17. Bxg5 {[%emt 0:10:03]} hxg5 {[%emt 0:01:41]} 18. Ba2 {[%emt 0:03:09]} Nf4 {[%emt 0:01:33]} 19. Qe3 {[%emt 0:01:57]} Qf6 {[%emt 0:04:56]} 20. f3 {[%emt 0:02:30]} Bxf5 {[%emt 0:11:25]} 21. gxf5 {[%emt 0:00:57]} g6 {[%emt 0:02:06]} 22. fxg6 {[%emt 0:00:59]} Qxg6 {[%emt 0:00:17]} 23. Kf2 {[%emt 0:01:04]} Qh5 {[%emt 0:02:14]} 24. Kg1 {[%emt 0:00:19]} Kg7 {[%emt 0:00:26]} 25. Bb3 {[%emt 0:00:17]} Rh8 {[%emt 0:05:17]} 26. Ra2 {[%emt 0:00:06]} Rh6 {[%emt 0:00:12]} 27. d4 {[%emt 0:01:04]} Rbh8 {[%emt 0:00:42]} 28. dxe5 {[%emt 0:00:26]} dxe5 {[%emt 0:00:08]} 29. Rd2 {[%emt 0:00:37]} g4 {[%emt 0:09:35]} 30. fxg4 {[%emt 0:00:26]} Qxg4+ {[%emt 0:00:07]} 31. Qg3 {[%emt 0:00:07]} Qxg3+ {[%emt 0:04:35]} 32. hxg3 {[%emt 0:00:07]} Rh1+ {[%emt 0:00:24]} 33. Kf2 {[%emt 0:00:06]} R8h2+ {[%emt 0:00:36]} 34. Kf3 {[%emt 0:00:15]} Rxd2 {[%emt 0:00:47]} 35. Rxh1 {[%emt 0:00:15]} Rd3+ {[%emt 0:00:20]} 36. Kg4 {[%emt 0:00:42]} Ne2 {[%emt 0:04:15]} 37. Bc4 {[%emt 0:01:01]} Re3 {[%emt 0:01:22]} 38. Bxe2 {[%emt 0:00:54]} Rxe2 {[%emt 0:00:57]} 39. Kf5 {[%emt 0:00:32]} Rc2 {[%emt 0:01:14]} 40. g4 {[%emt 0:00:00]} Rxc3 {[%emt 0:00:00]} 41. Kxe5 {[%emt 0:01:28]} Rc4 {[%emt 0:00:56]} 42. Rb1 {[%emt 0:01:00]} b5 {[%emt 0:07:09]} 1/2-1/2

[Event "ROU-chT Men Superliga 2018"]
[Site "Sovata"]
[Date "2018.11.24"]
[Round "1.30"]
[White "Toma, Radu-Cristian"]
[Black "Vasiesiu, Victor"]
[Result "1-0"]
[ECO "A04"]
[WhiteElo "2354"]
[BlackElo "2270"]
[Annotator "NA"]
[PlyCount "87"]
[EventDate "2018.11.24"]
[EventType "team-tourn"]
[EventCountry "ROU"]
[SourceTitle "playchess.com"]
[Source "ChessBase"]
[SourceQuality "1"]
[TimeControl "40/5400+30:1800+30"]

1. Nf3 {[%emt 0:00:00]} f5 {[%emt 0:00:00]} 2. c4 {[%emt 0:00:00]} Nf6 {[%emt 0:00:00]} 3. Nc3 {[%emt 0:00:24]} g6 {[%emt 0:00:28]} 4. d4 {[%emt 0:00:21]} Bg7 {[%emt 0:00:10]} 5. Bf4 {[%emt 0:00:10]} O-O {[%emt 0:01:41]} 6. e3 {[%emt 0:00:16]} d6 {[%emt 0:00:58]} 7. c5 {[%emt 0:00:12]} Qe8 {[%emt 0:07:15]} 8. Bc4+ {[%emt 0:10:26]} Kh8 {[%emt 0:00:38]} 9. h4 {[%emt 0:07:17]} Na6 {[%emt 0:24:11]} 10. Qe2 {[%emt 0:11:29]} Nh5 {[%emt 0:02:39]} 11. Bh2 {[%emt 0:11:35]} e5 {[%emt 0:01:32]} 12. cxd6 {[%emt 0:06:20]} cxd6 {[%emt 0:00:31]} 13. Bb5 {[%emt 0:04:46]} Qe7 {[%emt 0:05:54]} 14. O-O {[%emt 0:07:24]} Nc7 {[%emt 0:03:48]} 15. Ba4 {[%emt 0:02:38]} f4 {[%emt 0:13:20]} 16. dxe5 {[%emt 0:05:59]} dxe5 {[%emt 0:00:12]} 17. exf4 {[%emt 0:05:42]} Bg4 {[%emt 0:00:05]} 18. Rfe1 {[%emt 0:01:15]} Nxf4 {[%emt 0:02:20]} 19. Bxf4 {[%emt 0:00:32]} Rxf4 {[%emt 0:00:12]} 20. Qe3 {[%emt 0:00:19]} Rxf3 {[%emt 0:14:38]} 21. gxf3 {[%emt 0:00:08]} Bh5 {[%emt 0:00:08]} 22. f4 {[%emt 0:03:01]} Rf8 {[%emt 0:03:06]} 23. Bd1 {[%emt 0:01:24]} Qxh4 {[%emt 0:01:59]} 24. fxe5 {[%emt 0:00:43]} Rf5 {[%emt 0:04:17]} 25. Bxh5 {[%emt 0:04:48]} Rxh5 {[%emt 0:02:51]} 26. Kf1 {[%emt 0:07:03]} Ne6 {[%emt 0:00:51]} 27. Qf3 {[%emt 0:06:44]} Nf4 {[%emt 0:01:02]} 28. Ne2 {[%emt 0:00:35]} Nxe2 {[%emt 0:02:46]} 29. Kxe2 {[%emt 0:00:40]} Qc4+ {[%emt 0:00:17]} 30. Kd1 {[%emt 0:00:33]} Rh4 {[%emt 0:01:32]} 31. Re2 {[%emt 0:00:33]} Rf4 {[%emt 0:02:41]} 32. Qb3 {[%emt 0:01:37]} Qc6 {[%emt 0:01:24]} 33. Qh3 {[%emt 0:00:56]} g5 {[%emt 0:02:25]} 34. Rd2 {[%emt 0:00:26]} Bxe5 {[%emt 0:00:31]} 35. Rc1 {[%emt 0:00:32]} Qf3+ {[%emt 0:00:18]} 36. Qxf3 {[%emt 0:00:05]} Rxf3 {[%emt 0:00:03]} 37. Rd7 {[%emt 0:00:33]} Rf8 {[%emt 0:01:03]} 38. Rxb7 {[%emt 0:00:55]} Bd4 {[%emt 0:00:11]} 39. f3 {[%emt 0:00:26]} Bb6 {[%emt 0:00:55]} 40. Rc6 {[%emt 0:00:00]} Kg8 {[%emt 0:00:00]} 41. Ke2 {[%emt 0:01:42]} Rf7 {[%emt 0:05:16]} 42. Rxf7 {[%emt 0:00:52]} Kxf7 {[%emt 0:00:05]} 43. Kd3 {[%emt 0:00:23]} h5 {[%emt 0:00:13]} 44. Ke4 {[%emt 0:00:26]} 1-0

[Event "ROU-chT Men Superliga 2018"]
[Site "Sovata"]
[Date "2018.11.25"]
[Round "2"]
[White "Iordachescu, Viorel"]
[Black "Pop, Alexandru"]
[Result "1-0"]
[ECO "C05"]
[WhiteElo "2597"]
[BlackElo "2274"]
[Annotator "ChessBase"]
[PlyCount "63"]
[EventDate "2018.11.24"]
[EventType "team-tourn"]
[EventCountry "ROU"]
[SourceTitle "playchess.com"]
[Source "ChessBase"]
[SourceQuality "1"]
[TimeControl "40/5400+30:1800+30"]

1. e4 {[%emt 0:00:00]} e6 {[%emt 0:00:00]} 2. d4 {[%emt 0:00:04]} d5 {[%emt 0:00:00]} 3. Nd2 {[%emt 0:00:38]} Nf6 {[%emt 0:00:31]} 4. e5 {[%emt 0:00:31]} Nfd7 {[%emt 0:00:07]} 5. Bd3 {[%emt 0:00:09]} c5 {[%emt 0:00:11]} 6. c3 {[%emt 0:00:08]} b6 {[%emt 0:00:09]} 7. Nh3 {[%emt 0:04:47]} Ba6 {[%emt 0:00:50]} 8. Bxa6 {[%emt 0:01:39]} Nxa6 {[%emt 0:00:06]} 9. O-O {[%emt 0:00:30]} Be7 {[%emt 0:04:07]} 10. Qg4 {[%emt 0:01:18]} g6 {[%emt 0:03:12]} 11. Nf3 {[%emt 0:01:09]} h6 {[%emt 0:02:39]} 12. Bd2 {[%emt 0:05:17]} Qc7 {[%emt 0:08:07]} 13. Nf4 {[%emt 0:06:23]} Nf8 {[%emt 0:00:30]} 14. c4 {[%emt 0:04:49]} dxc4 {[%emt 0:05:31]} 15. d5 {[%emt 0:01:08]} exd5 {[%emt 0:01:42]} 16. Nxd5 {[%emt 0:00:23]} Qd7 {[%emt 0:01:12]} 17. Qxc4 {[%emt 0:00:43]} Nc7 {[%emt 0:01:37]} 18. Nxe7 Qxe7 {[%emt 0:01:57]} 19. b4 {[%emt 0:08:43]} Nfe6 {[%emt 0:04:40]} 20. bxc5 Qxc5 {[%emt 0:00:27]} 21. Qa4+ {[%emt 0:02:58]} Qb5 {[%emt 0:01:30]} 22. Qh4 {[%emt 0:00:30]} Rd8 {[%emt 0:09:35]} 23. Rac1 {[%emt 0:03:18]} Nd5 {[%emt 0:03:12]} 24. Rfd1 {[%emt 0:01:16]} Qa6 {[%emt 0:26:39]} 25. Ng5 {[%emt 0:06:31]} Nc5 {[%emt 0:09:01]} 26. Ne4 {[%emt 0:13:21]} Nxe4 {[%emt 0:00:20]} 27. Qxe4 {[%emt 0:00:09]} Qb7 {[%emt 0:05:00]} 28. Bb4 {[%emt 0:03:27]} Qa8 {[%emt 0:01:56]} 29. Bd6 {[%emt 0:01:02]} Ne7 {[%emt 0:00:11]} 30. Qa4+ {[%emt 0:01:39]} Kf8 {[%emt 0:00:06]} 31. Rc7 {[%emt 0:01:44]} Re8 {[%emt 0:00:15]} 32. Qe4 1-0

[Event "ROU-chT Men Superliga 2018"]
[Site "Sovata"]
[Date "2018.11.25"]
[Round "2"]
[White "Murariu, Andrei"]
[Black "Berescu, Alin-Mile"]
[Result "1/2-1/2"]
[ECO "B27"]
[WhiteElo "2511"]
[BlackElo "2450"]
[Annotator "ChessBase"]
[PlyCount "24"]
[EventDate "2018.11.24"]
[EventType "team-tourn"]
[EventCountry "ROU"]
[SourceTitle "playchess.com"]
[Source "ChessBase"]
[SourceQuality "1"]
[TimeControl "40/5400+30:1800+30"]

1. e4 {[%emt 0:00:00]} c5 {[%emt 0:00:02]} 2. Nf3 {[%emt 0:02:54]} g6 {[%emt 0:01:16]} 3. d4 {[%emt 0:02:01]} cxd4 {[%emt 0:00:52]} 4. Qxd4 {[%emt 0:00:22]} Nf6 {[%emt 0:00:44]} 5. e5 {[%emt 0:00:11]} Nc6 {[%emt 0:00:13]} 6. Qa4 {[%emt 0:00:15]} Nd5 {[%emt 0:00:24]} 7. Qe4 {[%emt 0:00:19]} Nb6 {[%emt 0:01:39]} 8. Bb5 {[%emt 0:09:47]} Bg7 {[%emt 0:05:21]} 9. Nc3 {[%emt 0:00:44]} d5 {[%emt 0:04:22]} 10. exd6 {[%emt 0:08:55]} Qxd6 {[%emt 0:01:25]} 11. Bf4 {[%emt 0:00:45]} Qe6 {[%emt 0:13:04]} 12. Be5 {[%emt 0:05:43]} f6 {[%emt 0:11:38]} 1/2-1/2